bitfinex-derivatives/quotes_ETHF0:USTF0_20250908
["timestamp","ask_amount","ask_price","bid_price","bid_amount"]
[1757308672646,3.9206,4301.9,4301.8,0.2137]
[1757308672842,3.9206,4301.9,4301.5,0.306]
[1757308673536,3.9206,4301.9,4301.4,0.234]
[1757308673738,3.9206,4301.9,4301.5,0.306]
[1757308674742,3.9206,4301.9,4301.4,0.234]
[1757308674943,3.9206,4301.9,4301.8,0.2137]
[1757308676032,0.7128,4301.9,4301.8,0.2137]
[1757308676435,0.517,4301.9,4301.8,0.7139]
[1757308676631,0.7128,4301.9,4301.8,0.7139]
[1757308683646,0.7128,4301.9,4301.8,0.2137]
[1757308683846,0.4073,4301.9,4301.6,0.87264642]
[1757308684151,0.7128,4301.8,4301.7,0.2137]
[1757308684444,0.7128,4301.8,4301.7,0.5197]
[1757308687851,0.2942,4301.9,4301.8,0.321]
[1757308688051,0.3314,4302.0,4301.9,0.7466]
[1757308688351,0.5459,4302.0,4301.9,0.7466]
[1757308688550,0.8401,4302.0,4301.9,0.7466]
[1757308689048,0.4986,4302.0,4301.9,1.54954642]
[1757308689253,3.2078,4302.9,4302.4,0.7466]
[1757308689254,0.5352,4302.5,4302.4,0.7466]
[1757308689950,0.7131,4302.5,4302.4,0.7466]
[1757308690350,0.4986,4302.5,4302.4,0.7466]
[1757308691555,0.4189,4302.1,4302.0,0.4256]
[1757308691856,0.7131,4302.1,4302.0,0.7466]
[1757308692054,0.7131,4302.1,4302.0,1.21305]
[1757308692954,0.7131,4302.1,4302.0,0.9806]
[1757308694455,0.4986,4302.1,4302.0,0.9806]
[1757308694651,0.4986,4302.1,4302.0,1.1073]
[1757308694957,0.8401,4302.5,4302.4,0.7466]
[1757308695145,0.8401,4302.5,4302.4,0.9806]
[1757308695458,0.7131,4302.5,4302.4,0.9806]
[1757308702458,0.2942,4302.9,4302.4,0.6596]
[1757308702653,0.7131,4303.0,4302.9,0.7466]
[1757308702859,0.7131,4303.0,4302.9,1.54954642]
[1757308703166,0.4986,4303.0,4302.9,1.54954642]
[1757308703366,0.8294,4303.5,4303.4,0.2137]
[1757308704765,0.8294,4303.5,4303.4,0.5347]
[1757308706966,0.7131,4303.5,4303.4,0.7466]
[1757308708364,0.4986,4303.5,4303.4,0.7466]
[1757308712262,0.127,4304.0,4303.5,0.321]
[1757308712467,0.7131,4303.9,4303.8,0.7466]
[1757308720180,0.7131,4303.9,4303.8,0.2137]
[1757308720472,0.1178,4303.5,4303.4,0.80294642]
[1757308720674,0.8266,4303.5,4303.3,3.2078]
[1757308720875,0.5233,4303.5,4303.3,3.2078]
[1757308721079,0.7088,4303.4,4303.3,3.2078]
[1757308724376,0.7088,4303.4,4303.3,3.7061]
[1757308724576,0.7088,4303.4,4303.3,3.9049]
[1757308726278,0.7088,4303.4,4303.3,4.1389]
[1757308732795,0.7088,4303.4,4303.3,3.4418]
[1757308733102,0.7088,4303.4,4303.3,3.6415]
[1757308733406,0.7088,4303.4,4303.3,3.9401]
[1757308733699,0.7088,4303.4,4303.3,4.1389]
[1757308734801,0.7088,4303.4,4303.3,3.9049]
[1757308735003,0.4991,4303.4,4303.3,4.1389]
[1757308736299,0.7088,4303.4,4303.3,4.1389]
[1757308736499,0.7088,4303.4,4303.3,3.9049]
[1757308736691,0.7088,4303.4,4303.3,4.1389]
[1757308736896,0.7088,4303.4,4303.3,3.6063]
[1757308737096,0.7088,4303.4,4303.3,3.6415]
[1757308737603,0.7088,4303.4,4303.3,3.9401]
[1757308737902,0.7088,4303.4,4303.3,4.1389]
[1757308741707,0.7088,4303.4,4303.3,3.9049]
[1757308741909,0.7088,4303.4,4303.3,4.1389]
[1757308742107,0.1958,4303.9,4303.8,0.3985]
[1757308742403,0.23235,4304.4,4303.8,0.3985]
[1757308742607,0.23235,4304.4,4304.2,0.1997]
[1757308742608,1.271867,4304.3,4304.2,0.1997]
[1757308742804,0.8266,4304.0,4303.9,0.4983]
[1757308743004,1.389667,4304.0,4303.9,0.6971]
[1757308743405,1.389667,4304.0,4303.9,0.3985]
[1757308743805,1.389667,4304.0,4303.9,0.6971]
[1757308744803,1.271867,4304.0,4303.9,0.6971]
[1757308745310,1.396367,4304.0,4303.8,0.5437]
[1757308745609,0.7131,4303.9,4303.8,0.9405]
[1757308747806,0.7131,4303.9,4303.8,0.7065]
[1757308750118,0.2933,4303.9,4303.8,0.7065]
[1757308752619,3.3348,4304.5,4303.9,0.3097]
[1757308752818,1.27624292,4304.4,4304.3,0.7065]
[1757308753920,1.27624292,4304.4,4304.3,0.3968]
[1757308754419,1.27624292,4304.4,4304.3,0.7065]
[1757308763017,1.06404292,4304.4,4304.3,0.7065]
[1757308764520,1.06404292,4304.4,4304.3,1.71749348]
[1757308764521,0.56314292,4304.4,4304.3,1.71749348]
[1757308764719,0.2933,4304.7,4304.6,0.7065]
[1757308764919,0.85661314,4304.7,4304.6,0.7065]
[1757308765116,1.06421314,4304.7,4304.6,0.7065]
[1757308765425,0.5009,4304.7,4304.6,0.7065]
[1757308766520,0.2933,4304.9,4304.8,0.3968]
[1757308766720,0.5009,4304.9,4304.8,0.7065]
[1757308767221,0.2933,4304.9,4304.8,0.7065]
[1757308767422,3.2078,4305.1,4304.8,0.7065]
[1757308767616,0.2933,4305.0,4304.9,0.3097]
[1757308767822,0.2933,4305.0,4304.9,0.7065]
[1757308768420,0.1178,4305.5,4304.9,0.7065]
[1757308768726,1.27573536,4305.4,4305.3,0.7065]
[1757308769317,0.7131,4305.4,4305.3,0.7065]
[1757308769521,3.2078,4306.1,4306.0,0.3097]
[1757308769719,3.9825356,4306.1,4306.0,0.7065]
[1757308769922,3.6276,4306.1,4306.0,0.7065]
[1757308770123,3.9209,4306.1,4306.0,0.7065]
[1757308770820,0.7131,4306.1,4306.0,0.7065]
[1757308771228,0.7131,4306.1,4306.0,1.71749348]
[1757308771427,0.7131,4306.1,4306.0,0.2008]
[1757308771625,0.1245,4306.0,4305.7,0.5437]
[1757308771826,0.7131,4305.8,4305.7,0.7445]
[1757308772022,0.7131,4305.8,4305.7,0.2008]
[1757308773430,0.2933,4305.7,4305.5,3.4418]
[1757308773731,0.7131,4305.6,4305.5,3.9523]
[1757308774127,0.7131,4305.6,4305.5,4.1483]
[1757308776823,0.7131,4305.6,4305.5,0.9405]
[1757308780233,0.7131,4305.6,4305.5,0.7065]
[1757308780433,0.7131,4305.6,4305.5,0.2008]
[1757308781825,0.7041,4305.1,4305.0,3.2078]
[1757308782025,0.1256,4305.0,4304.8,0.233]
[1757308782228,0.3052,4304.8,4304.5,3.519]
[1757308782424,0.7041,4304.6,4304.5,3.7173]
[1757308783328,0.7041,4304.6,4304.5,3.4061]
[1757308783930,0.7041,4304.6,4304.5,3.7173]
[1757308784835,0.7041,4304.6,4304.5,3.9209]
[1757308786831,0.7041,4304.6,4304.5,3.4061]
[1757308787031,0.7041,4304.6,4304.4,0.0696]
[1757308787032,0.5245,4304.5,4304.4,0.0696]
[1757308787331,1.06202,4304.5,4304.4,0.0696]
[1757308787532,0.3989,4304.2,4304.1,0.7131]
[1757308787731,0.7041,4304.2,4304.1,0.7131]
[1757308800946,0.7041,4304.2,4303.9,0.0697]
[1757308800947,0.8297,4304.0,4303.9,0.0697]
[1757308801341,0.8297,4304.0,4303.9,0.5095]
[1757308801853,0.8297,4304.0,4303.9,0.1983]
[1757308803543,0.8297,4304.0,4303.9,0.5095]
[1757308804641,0.8297,4304.0,4303.9,0.1983]
[1757308805844,0.7101,4303.9,4303.8,3.2078]
[1757308806046,1.5121279,4303.9,4303.7,0.0697]
[1757308806243,0.94245,4303.8,4303.7,0.0697]
[1757308806844,0.94245,4303.8,3761.2,0.9894951]
[1757308806845,4.63906,4303.8,4302.7,0.3203]
[1757308807051,0.7101,4302.8,4302.7,0.9722]
[1757308811645,0.7101,4302.8,4302.7,4.18]
[1757308816062,0.7101,4302.8,4302.7,3.4206]
[1757308816250,0.5319,4302.5,4302.4,0.234]
[1757308816454,0.8353,4302.5,4302.4,0.234]
[1757308817460,0.8353,4302.5,4302.4,0.7671]
[1757308820258,0.8353,4302.5,4302.2,3.2078]
[1757308820460,0.3034,4302.4,4302.2,3.5281]
[1757308820657,0.7101,4302.3,4302.2,3.4206]
[1757308820858,0.7101,4302.3,4302.2,3.7409]
[1757308821259,0.7101,4302.3,4302.2,3.4206]
[1757308821463,0.7101,4302.3,4302.2,0.2128]
[1757308822058,0.7101,4302.3,4302.0,0.3203]
[1757308822665,0.7101,4302.3,4301.9,0.234]
[1757308823165,0.7101,4302.3,4302.0,0.3203]
[1757308823368,0.7101,4302.3,4302.2,0.2128]
[1757308823561,0.7101,4302.3,4302.2,0.5331]
[1757308824671,0.1252,4302.5,4301.9,0.7671]
[1757308824672,0.5319,4302.0,4301.9,0.7671]
[1757308824971,0.8353,4302.0,4301.9,0.7671]
[1757308825662,0.8353,4302.0,4301.9,0.9732]
[1757308827470,0.8353,4302.0,4301.9,0.7392]
[1757308828273,0.8353,4302.0,4301.7,3.4418]
[1757308828274,0.7101,4301.3,4301.2,3.4206]
[1757308828572,0.3034,4301.2,4300.7,3.5281]
[1757308828779,0.7101,4300.8,4300.7,3.9749]
[1757308828979,0.7101,4300.8,4300.2,0.18187382]
[1757308828980,0.7101,4300.8,4300.4,0.3203]
[1757308829273,0.5016,4300.4,4300.3,0.7392]
[1757308830674,0.7101,4300.4,4300.3,0.7392]
[1757308832176,0.5016,4300.4,4300.3,0.7392]
[1757308837383,0.7101,4300.4,4300.3,0.7392]
[1757308837582,0.7101,4300.4,4300.3,0.2128]
[1757308839483,0.2937,4300.3,4300.1,3.749]
[1757308839784,0.7051,4300.2,4300.1,3.7265]
[1757308840484,0.7051,4300.2,4300.1,3.2078]
[1757308841880,0.7051,4300.2,4300.1,3.4193]
[1757308842278,0.7051,4300.2,4300.1,3.7265]
[1757308843184,0.7051,4300.2,4300.1,3.933]
[1757308845086,0.8212,4300.2,4300.1,3.933]
[1757308848895,0.8212,4300.2,4300.1,3.4193]
[1757308849089,0.8212,4300.2,4300.1,3.933]
[1757308853794,0.8212,4300.2,4300.1,0.7252]
[1757308855996,0.4098,4300.2,4300.1,0.7252]
[1757308856501,0.6186,4300.2,4300.1,0.7252]
[1757308857798,0.8212,4300.2,4300.1,0.7252]
[1757308862309,0.1161,4300.2,4300.1,0.7252]
[1757308862605,0.1161,4300.2,4300.1,1.7376471]
[1757308864209,0.1161,4300.2,4300.1,4.9454471]
[1757308867309,0.8166,4300.2,4300.1,3.2078]
[1757308867606,0.7005,4299.8,4299.7,0.0697]
[1757308867805,1.26669447,4299.8,4299.7,0.0697]
[1757308868005,0.1198,4299.5,4299.4,3.2078]
[1757308868202,0.5297,4299.5,4299.4,3.721]
[1757308868406,0.8203,4299.5,4299.4,3.721]
[1757308868604,0.9365,4299.5,4299.4,3.721]
[1757308868799,0.9365,4299.5,4299.4,3.9236]
[1757308870214,0.8167,4299.5,4299.4,3.9236]
[1757308871112,0.6198,4299.5,4299.4,3.9236]
[1757308872514,0.3292,4299.5,4299.4,3.9236]
[1757308872716,0.6198,4299.5,4299.4,3.9236]
[1757308873111,0.3292,4299.5,4299.4,3.9236]
[1757308873813,0.1162,4299.5,4299.4,3.9236]
[1757308874915,0.4068,4299.5,4299.4,3.9236]
[1757308875814,0.6198,4299.5,4299.4,3.9236]
[1757308877012,0.6198,4299.5,4299.4,0.7158]
[1757308877404,0.6198,4299.5,4299.1,0.317]
[1757308877405,0.9365,4299.5,4299.1,0.317]
[1757308877613,0.9365,4299.5,4299.0,0.1198]
[1757308878114,0.9365,4299.5,4299.4,0.5132]
[1757308879013,1.9489471,4299.5,4299.4,0.5132]
[1757308879216,5.1567471,4299.5,4299.4,0.1962]
[1757308880013,5.1567471,4299.5,4299.4,0.5132]
[1757308880215,4.1443,4299.5,4299.4,0.5132]
[1757308881108,0.9365,4299.5,4299.4,0.5132]
[1757308885020,0.9365,4299.5,4299.1,0.0697]
[1757308885317,0.8203,4299.5,4299.2,0.317]
[1757308886216,0.8203,4299.5,4299.4,0.1962]
[1757308886421,0.8203,4299.5,4299.4,0.397]
[1757308888229,0.8203,4299.5,4299.4,0.08]
[1757308888526,0.7005,4299.2,4299.1,0.5829]
[1757308888822,0.7005,4299.2,4299.1,0.5132]
[1757308889122,0.1198,4299.0,4298.8,3.5248]
[1757308889322,0.8203,4299.0,4298.9,0.5132]
[1757308889622,0.8203,4299.0,4298.9,0.7158]
[1757308890221,0.7005,4299.0,4298.9,0.7158]
[1757308890426,0.5036,4299.0,4298.9,0.7158]
[1757308891722,0.8203,4299.0,4298.8,3.2078]
[1757308892025,0.7005,4298.9,4298.8,3.404]
[1757308892214,0.7005,4298.9,4298.8,3.9236]
[1757308894724,3.3276,4299.5,4299.0,0.1234]
[1757308894930,3.8312,4299.5,4299.4,0.7158]
[1757308895129,4.82692843,4299.5,4299.4,0.7158]
[1757308896033,4.82692843,4299.5,4299.4,0.3988]
[1757308896235,4.82692843,4299.5,4299.4,0.1962]
[1757308897628,4.82692843,4299.5,4298.8,3.2078]
[1757308897629,0.7255,4298.9,4298.8,3.4207]
[1757308897934,0.7255,4298.9,4298.8,3.7185]
[1757308898134,0.7255,4298.9,4298.8,3.9297]
[1757308899934,0.518,4298.9,4298.8,3.9297]
[1757308900533,0.7255,4298.9,4298.8,3.9297]
[1757308901539,0.7255,4298.9,4298.8,3.6319]
[1757308901744,0.7255,4298.9,4298.8,0.2129]
[1757308904948,0.7255,4298.9,4298.7,0.0697]
[1757308905743,1.7379471,4298.9,4298.7,0.0697]
[1757308905942,1.7379471,4298.9,4298.1,3.2078]
[1757308905943,0.1171,4298.5,4298.1,3.2078]
[1757308906147,0.4159,4297.7,4297.6,3.9297]
[1757308906443,0.3096,4297.9,4297.8,0.4241]
[1757308906647,0.518,4297.9,4297.8,0.7219]
[1757308909443,0.7255,4297.9,4297.8,0.2129]
[1757308909650,0.3096,4297.8,4297.6,3.2078]
[1757308909845,0.7255,4297.7,4297.6,3.4207]
[1757308910051,0.7255,4297.7,4297.6,3.9297]
[1757308917751,0.518,4297.7,4297.6,3.9297]
[1757308921554,0.234,4298.3,4298.2,0.2978]
[1757308921749,0.234,4298.3,4298.2,0.7219]
[1757308921953,0.5436,4298.3,4298.2,0.7219]
[1757308922161,0.752,4298.3,4298.2,0.7219]
[1757308922763,0.9595,4298.3,4298.2,0.4241]
[1757308922965,0.9595,4298.3,4298.2,0.2129]
[1757308923654,0.9595,4298.3,4298.2,0.5107]
[1757308923853,0.9595,4298.3,4298.2,0.2129]
[1757308925458,0.7092,4297.8,4297.7,0.1978]
[1757308926956,0.7092,4297.8,4297.7,0.5199]
[1757308927465,0.7092,4297.8,4297.7,0.1978]
[1757308930464,0.3142,4297.7,4297.2,0.3221]
[1757308930666,0.7092,4297.3,4297.2,0.5199]
[1757308930969,0.7092,4297.3,4297.2,0.7199]
[1757308933068,0.5111,4297.3,4297.2,0.7199]
[1757308933766,0.3142,4297.7,4297.3,0.3221]
[1757308933963,0.5111,4297.7,4297.6,0.1978]
[1757308934167,0.7092,4297.7,4297.6,0.5199]
[1757308935872,0.7092,4297.7,4297.6,0.1978]
[1757308936262,0.7092,4297.7,4297.1,3.2078]
[1757308936467,0.7092,4297.2,4297.1,3.4056]
[1757308936773,0.7092,4297.2,4297.1,3.9277]
[1757308938573,0.5111,4297.2,4297.1,4.7321209]
[1757308940377,0.1969,4297.8,4297.7,0.3978]
[1757308940573,1.0759893,4297.8,4297.7,0.7199]
[1757308941073,0.9598893,4297.8,4297.2,0.3221]
[1757308941273,0.7092,4297.7,4297.6,0.1978]
[1757308941664,0.395,4297.7,4297.1,3.5299]
[1757308941863,0.5111,4297.2,4297.1,3.9277]
[1757308942876,0.1283,4297.5,4297.1,3.9277]
[1757308943173,0.3142,4297.4,4297.3,0.7199]
[1757308943670,0.9327209,4298.0,4297.3,0.7199]
[1757308943876,0.56485726,4297.9,4297.4,0.3221]
[1757308944077,1.27405726,4297.8,4297.7,0.1978]
[1757308944775,1.27405726,4297.8,4297.7,0.5199]
[1757308947977,1.27405726,4297.8,4297.7,0.1978]
[1757308949682,1.27405726,4297.8,4297.5,0.3221]
[1757308949876,0.7092,4297.8,4297.5,0.3221]
[1757308951576,0.4425,4297.5,4297.2,0.3221]
[1757308951787,0.7092,4297.2,4297.1,3.2078]
[1757308952777,0.7092,4297.2,4297.1,3.4056]
[1757308953471,0.7092,4297.2,4297.1,3.7277]
[1757308953886,0.7092,4297.2,4297.1,3.9277]
[1757308955785,0.7092,4297.2,4296.7,0.3117]
[1757308955987,0.395,4297.2,4296.7,0.3117]
[1757308956284,0.8044209,4297.4,4297.0,0.2075]
[1757308956285,0.7155,4297.1,4297.0,0.2075]
[1757308956485,0.7155,4297.1,4297.0,0.5192]
[1757308959287,0.7155,4297.1,4297.0,0.7193]
[1757308964981,0.4462,4297.0,4296.6,5.2647842]
[1757308965182,0.7155,4296.7,4296.6,0.0698]
[1757308965383,0.7155,4296.7,4295.8,0.3117]
[1757308965384,0.3191,4296.4,4295.8,0.3117]
[1757308965589,0.7155,4295.9,4295.8,0.4076]
[1757308965888,0.7155,4295.9,4295.8,0.7193]
[1757308966588,0.8318,4295.9,4295.8,0.7193]
[1757308966981,0.1163,4295.9,4295.8,0.7193]
[1757308967386,0.1163,4295.9,4295.8,1.5237209]
[1757308967893,0.4354,4295.9,4295.8,1.5237209]
[1757308968394,0.1163,4295.9,4295.8,1.5237209]
[1757308968594,0.1163,4295.9,4295.8,5.5237209]
[1757308970496,0.1163,4295.9,4295.8,5.7587209]
[1757308971197,0.1163,4295.9,4295.8,1.7587209]
[1757308972497,0.1163,4295.9,4295.8,0.7193]
[1757308972702,0.1163,4295.9,4295.8,1.7587209]
[1757308974593,0.1163,4295.9,4295.8,5.7587209]
[1757308974788,0.5162,4296.8,4296.7,0.4076]
[1757308974996,0.5162,4296.8,4296.7,3.9271]
[1757308976498,0.7155,4296.8,4296.7,3.9271]
[1757308978605,33.6523,4297.5,4296.8,0.3117]
[1757308978796,0.1971,4297.5,4297.4,0.4076]
[1757308978995,0.1971,4297.5,4297.4,0.7193]
[1757308979400,0.8426,4297.5,4297.4,0.7193]
[1757308980005,0.5162,4297.5,4297.4,0.7193]
[1757308980505,0.8426,4297.5,4297.4,0.7193]
[1757308981709,0.1271,4298.0,4297.4,0.7193]
[1757308981900,0.3621,4298.0,4297.5,0.3117]
[1757308982101,0.3964,4297.9,4297.8,0.2075]
[1757308982497,0.3964,4297.9,4297.8,0.7193]
[1757308982701,0.7155,4297.9,4297.8,0.7193]
[1757308983402,0.1271,4298.5,4297.9,0.3117]
[1757308983712,0.5235,4298.5,4297.9,0.3117]
[1757308984105,0.1971,4298.0,4297.9,0.7193]
[1757308984407,0.5162,4298.0,4297.9,0.7193]
[1757308985506,0.849,4298.0,4297.9,0.7193]
[1757308987909,0.5299,4298.0,4297.8,3.2078]
[1757308988106,0.3218,4297.9,4297.8,3.2078]
[1757308988302,0.7388,4297.9,4297.8,3.2078]
[1757308988509,0.7388,4297.9,4297.8,3.4199]
[1757308989400,0.7388,4297.9,4297.8,3.9272]
[1757308990910,0.2132,4298.4,4298.3,0.4116]
[1757308991108,0.535,4298.4,4298.3,0.7194]
[1757308991913,0.7388,4298.4,4298.3,0.7194]
[1757308994513,0.3218,4298.6,4298.4,0.3078]
[1757308994904,0.3218,4298.6,4298.5,0.7194]
[1757308995110,0.535,4299.0,4298.9,0.5073]
[1757308995309,0.535,4299.0,4298.9,0.7194]
[1757308995517,0.3218,4299.0,4298.9,0.7194]
[1757308995710,0.235,4299.6,4299.0,0.3724]
[1757308995915,0.6621,4299.5,4299.4,0.7194]
[1757308996113,0.8659,4299.5,4299.4,0.7194]
[1757308999318,0.8659,4299.5,4298.9,0.235]
[1757308999514,0.8659,4299.5,4298.8,3.5156]
[1757308999515,0.3218,4298.9,4298.8,3.2078]
[1757308999813,0.7388,4298.9,4298.8,3.2078]
[1757309002209,0.7388,4298.9,4298.8,3.4199]
[1757309003022,0.7388,4298.9,4298.8,3.9272]
[1757309003610,0.235,4299.2,4298.8,3.9272]
[1757309003821,0.4482,4299.2,4299.1,0.4116]
[1757309004022,0.2132,4299.2,4299.1,0.7194]
[1757309004220,0.417,4299.2,4299.1,0.7194]
[1757309004419,0.417,4299.2,4299.1,0.4116]
[1757309004420,0.7388,4299.2,4299.1,0.4116]
[1757309005722,0.7388,4299.2,4299.1,0.7194]
[1757309006122,0.535,4299.2,4299.1,0.7194]
[1757309006523,0.7388,4299.2,4299.1,0.7194]
[1757309006722,0.7388,4299.2,4299.1,0.4116]
[1757309008527,0.7388,4299.2,4299.1,0.2121]
[1757309008726,0.129,4299.0,4298.8,3.2078]
[1757309008920,0.7388,4298.9,4298.8,3.2078]
[1757309009522,0.7388,4298.9,4298.6,0.235]
[1757309010322,0.129,4298.5,4298.4,0.2121]
[1757309010520,0.546,4298.5,4298.4,0.2121]
[1757309011129,0.8678,4298.5,4298.4,0.2121]
[1757309011726,0.8678,4298.5,4298.4,0.4116]
[1757309011922,0.8678,4298.5,4298.4,0.7194]
[1757309012322,0.8678,4298.5,4298.4,0.4116]
[1757309016233,0.8678,4298.5,4298.4,0.7084]
[1757309018745,0.8678,4298.5,4298.4,0.4116]
[1757309019344,0.8678,4298.5,4298.2,0.0697]
[1757309040461,1.67208313,4298.5,4298.2,0.0697]
[1757309040757,0.535,4298.5,4298.4,1.51028313]
[1757309042054,0.8698,4298.5,4298.4,1.51028313]
[1757309042657,0.8698,4298.5,4298.4,0.706]
[1757309044057,0.8698,4298.5,4298.4,0.2079]
[1757309050462,1.67408313,4298.5,4298.2,0.0697]
[1757309050660,1.67408313,4298.5,4298.3,0.234]
[1757309052362,1.67408313,4298.5,4298.2,0.0697]
[1757309055671,0.8698,4298.5,4298.2,0.0697]
[1757309055865,0.8698,4298.5,4298.4,0.215]
[1757309056170,0.8698,4298.5,4298.4,0.7429]
[1757309058874,0.8698,4298.5,4298.4,0.4266]
[1757309061476,0.8698,4298.5,4298.4,0.7429]
[1757309062173,0.8698,4298.5,4298.4,0.4266]
[1757309062370,0.8698,4298.5,4298.2,0.0697]
[1757309062576,1.20458313,4298.3,4298.2,0.0697]
[1757309062772,1.51418313,4298.3,4298.2,0.0697]
[1757309062973,1.51418313,4298.3,4298.1,0.234]
[1757309064970,0.1238,4298.0,4297.9,3.2078]
[1757309065172,0.1238,4298.0,4297.9,3.4418]
[1757309065173,0.8337,4298.0,4297.9,3.4418]
[1757309065373,0.8337,4298.0,4297.9,3.2078]
[1757309066469,0.8337,4298.0,4297.4,3.2078]
[1757309066470,0.1238,4297.5,4297.4,3.2078]
[1757309066676,0.1238,4297.5,4296.9,0.7429]
[1757309066677,0.8337,4297.0,4296.9,0.7429]
[1757309066876,0.8337,4297.0,4296.9,0.9769]
[1757309067278,0.8337,4297.0,4296.9,1.20961999]
[1757309067573,0.3096,4297.0,4296.9,1.20961999]
[1757309067778,0.3096,4297.0,4296.9,0.9769]
[1757309068680,0.3096,4297.0,4296.9,4.1847]
[1757309071181,0.1238,4298.0,4296.9,8.1847]
[1757309071384,0.5241,4298.0,4297.9,0.215]
[1757309071783,0.5241,4298.0,4297.6,0.80428313]
[1757309072080,0.4003,4297.7,4297.6,1.01928313]
[1757309072282,0.7099,4297.7,4297.6,1.01928313]
[1757309078485,0.7099,4297.7,4297.6,0.215]
[1757309079293,0.7099,4297.7,4297.5,3.2078]
[1757309079487,0.4003,4297.7,4297.5,3.2078]
[1757309079786,0.715,4297.6,4297.5,3.2078]
[1757309079990,0.715,4297.6,4297.5,3.4119]
[1757309080494,0.715,4297.6,4297.4,0.0698]
[1757309080690,0.8329,4297.5,4297.4,0.3038]
[1757309081090,0.8329,4297.5,4297.4,0.4381]
[1757309081996,0.8329,4297.5,4297.4,4.1525]
[1757309084199,0.1238,4298.0,4297.4,4.1525]
[1757309084399,0.5301,4298.0,4297.9,0.2041]
[1757309085001,0.8388,4298.0,4297.9,0.2041]
[1757309092304,1.40729576,4298.0,4297.9,0.2041]
[1757309092808,1.40729576,4298.0,4297.7,0.0698]
[1757309093106,0.8388,4298.0,4297.7,0.0698]
[1757309095304,0.56882295,4297.9,4297.7,0.0698]
[1757309095607,0.8388,4298.0,4297.7,0.0698]
[1757309095804,0.4063,4297.8,4297.7,0.0698]
[1757309096012,0.715,4297.8,4297.7,0.0698]
[1757309096305,1.28412707,4297.8,4297.5,0.3101]
[1757309096507,0.715,4297.8,4297.5,0.3101]
[1757309097707,0.715,4297.8,4297.7,0.2041]
[1757309097903,0.5213,4297.8,4297.7,1.51498313]
[1757309098705,0.3087,4298.2,4297.7,1.20488313]
[1757309098905,0.715,4298.1,4298.0,3.6084]
[1757309099105,0.715,4298.1,4298.0,3.9185]
[1757309101099,0.234,4298.3,4298.0,4.72278313]
[1757309101294,0.715,4298.1,4298.0,4.41268313]
[1757309101907,0.715,4298.1,4298.0,4.72278313]
[1757309102405,0.3087,4298.4,4298.1,0.3101]
[1757309102604,0.5213,4298.4,4298.3,0.7107]
[1757309104900,0.715,4298.4,4298.3,0.7107]
[1757309105700,0.5213,4298.4,4298.3,0.7107]
[1757309107511,0.3157,4298.9,4298.4,0.2931]
[1757309107702,0.234,4299.1,4298.9,0.2006]
[1757309107703,0.5344,4299.0,4298.9,0.2006]
[1757309108208,0.8501,4299.0,4298.9,0.2006]
[1757309108600,0.7263,4299.0,4298.9,0.7086]
[1757309108806,0.3157,4299.0,4298.9,0.7086]
[1757309111413,0.1179,4299.5,4299.3,0.7086]
[1757309111414,0.5257,4299.4,4299.3,0.7086]
[1757309111609,0.7263,4299.4,4299.3,0.7086]
[1757309111910,0.3157,4299.4,4299.3,4.92966243]
[1757309112414,0.5257,4299.4,4299.3,4.92966243]
[1757309115313,0.5257,4299.4,4299.3,3.9164]
[1757309116514,0.7263,4299.4,4299.3,3.9164]
[1757309116712,1.73956243,4299.4,4299.1,0.235]
[1757309117909,0.7263,4299.4,4299.1,0.235]
[1757309119119,0.7263,4299.4,4299.0,0.235]
[1757309119517,0.1249,4299.0,4298.9,0.2006]
[1757309119723,0.8512,4299.0,4298.9,0.4356]
[1757309120619,0.8512,4299.0,4298.9,0.9436]
[1757309125433,0.8512,4299.0,4298.9,0.9426]
[1757309125633,0.8512,4299.0,4298.9,0.7086]
[1757309125932,0.8512,4299.0,4298.9,0.9426]
[1757309127023,0.8512,4299.0,4298.9,0.6495]
[1757309128437,0.8512,4299.0,4298.9,0.9426]
[1757309128736,0.8512,4299.0,4298.9,4.1504]
[1757309130831,0.8512,4299.0,4298.9,0.9426]
[1757309131130,0.8512,4299.0,4298.9,4.1504]
[1757309131534,0.5257,4299.0,4298.9,4.1504]
[1757309132626,0.3157,4299.0,4298.9,4.1504]
[1757309133025,0.3157,4299.4,4299.3,0.7086]
[1757309133230,0.7263,4299.9,4299.8,0.2006]
[1757309133432,0.7263,4299.9,4299.8,0.6495]
[1757309133433,1.29023002,4299.9,4299.8,0.6495]
[1757309133636,0.3157,4299.9,4299.8,0.9426]
[1757309133830,0.3157,4300.0,4299.9,0.7086]
[1757309134030,0.5257,4300.0,4299.9,0.9436]
[1757309134637,0.8512,4300.0,4299.9,0.9436]
[1757309138545,0.8512,4300.0,4299.9,4.1514]
[1757309138735,0.5257,4300.0,4299.9,4.1514]
[1757309140540,0.8511,4300.0,4299.9,4.1514]
[1757309142341,0.5257,4300.0,4299.9,4.1514]
[1757309143542,0.3157,4300.0,4299.9,4.1514]
[1757309145338,0.8346,4300.5,4300.4,0.2007]
[1757309145641,0.8346,4300.5,4300.4,0.4347]
[1757309146342,0.8346,4300.5,4299.9,3.2078]
[1757309146343,0.8273,4300.0,4299.9,3.2078]
[1757309146650,0.8273,4300.0,4299.9,3.4418]
[1757309149634,0.8273,4300.0,4299.9,3.6425]
[1757309154745,0.8273,4300.0,4299.9,0.4347]